bitfinex/quotes_SOLUSD_20250625
["timestamp","ask_amount","ask_price","bid_price","bid_amount"]
[1750880118187,148.6,143.88,143.84,6.63808315]
[1750880118566,152.77023298,143.88,143.84,6.63808315]
[1750880119288,148.6,143.88,143.84,6.63808315]
[1750880119478,152.77021178,143.88,143.84,6.63808315]
[1750880122103,148.6,143.88,143.84,6.63808315]
[1750880122409,148.6,143.88,143.85,6.63808315]
[1750880124183,148.6,143.88,143.86,6.63808315]
[1750880124577,148.6,143.88,143.87,6.63808315]
[1750880125180,148.6,143.88,143.84,32.23969345]
[1750880125181,148.6,143.88,143.85,6.63808315]
[1750880125594,148.6,143.88,143.86,6.63808315]
[1750880126583,148.6,143.88,143.85,6.63808315]
[1750880126975,148.6,143.88,143.86,6.63808315]
[1750880128302,4.20956219,143.9,143.86,6.63808315]
[1750880128508,9.39453139,143.9,143.85,6.63808315]
[1750880128804,5.2249692,143.9,143.84,6.95195684]
[1750880129098,5.2249692,143.9,143.86,6.63808315]
[1750880130675,9.39480283,143.9,143.86,6.63808315]
[1750880131876,9.39480283,143.9,143.85,6.63808315]
[1750880133300,9.39480283,143.9,143.84,6.95216907]
[1750880133473,9.39480283,143.9,143.85,6.63808315]
[1750880134201,4.20983363,143.9,143.85,6.63808315]
[1750880135496,9.35990874,143.89,143.85,6.63808315]
[1750880137203,4.20956219,143.9,143.85,6.63808315]
[1750880137401,5.19468162,143.89,143.85,6.63808315]
[1750880137603,4.20956219,143.9,143.85,6.63808315]
[1750880137905,5.19479734,143.89,143.85,6.63808315]
[1750880138091,4.20956219,143.9,143.85,6.63808315]
[1750880138315,5.19482779,143.89,143.86,6.63808315]
[1750880138483,4.20956219,143.9,143.86,6.63808315]
[1750880138685,5.19723951,143.89,143.87,6.63808315]
[1750880138883,0.04,143.9,143.85,6.95147205]
[1750880139085,5.19711153,143.89,143.86,6.63808315]
[1750880139313,0.04,143.9,143.86,6.63808315]
[1750880139550,5.19717562,143.89,143.86,6.63808315]
[1750880139696,0.04,143.9,143.86,6.63808315]
[1750880139991,5.19717672,143.89,143.86,6.63808315]
[1750880140185,0.04,143.9,143.86,6.63808315]
[1750880140394,5.19711321,143.89,143.86,6.63808315]
[1750880140604,0.04,143.9,143.86,6.63808315]
[1750880140811,5.19706247,143.89,143.86,6.63808315]
[1750880141103,0.04,143.9,143.86,6.63808315]
[1750880142303,0.04,143.9,143.88,6.63808315]
[1750880145016,0.04,143.9,143.85,20.27524886]
[1750880145017,0.04,143.9,143.87,6.63808315]
[1750880145399,0.04,143.9,143.86,6.63808315]
[1750880146419,0.04,143.9,143.88,6.63808315]
[1750880147217,5.23406592,143.9,143.88,6.63808315]
[1750880147722,0.04,143.9,143.88,6.63808315]
[1750880151805,0.04,143.9,143.87,6.63808315]
[1750880153018,0.04,143.9,143.86,6.95097737]
[1750880153019,0.04,143.9,143.86,13.58906052]
[1750880153218,5.23226083,143.9,143.86,13.58906052]
[1750880154125,0.04,143.9,143.86,13.58906052]
[1750880154825,5.2322658,143.9,143.86,13.58906052]
[1750880155129,9.40184731,143.9,143.86,13.58906052]
[1750880155728,4.20958151,143.9,143.86,13.58906052]
[1750880156227,0.04,143.9,143.86,13.58906052]
[1750880156822,5.23245559,143.9,143.86,13.58906052]
[1750880157126,0.04,143.9,143.86,13.58906052]
[1750880159151,0.04,143.9,143.87,6.63808315]
[1750880159434,0.04,143.9,143.88,6.63808315]
[1750880159640,0.04,143.9,143.89,6.63808315]
[1750880160012,5.2354956,143.9,143.89,6.63808315]
[1750880160211,0.04,143.9,143.89,4.24569393]
[1750880160414,0.04,143.9,143.88,4.24569393]
[1750880160745,0.04,143.9,143.89,22.89534279]
[1750880161248,0.04,143.9,143.89,29.84509607]
[1750880162222,0.04,143.9,143.89,32.23107385]
[1750880163227,0.04,143.9,143.89,58.23107385]
[1750880164129,5.18843191,143.97,143.9,18.64964886]
[1750880164333,10.09398141,143.98,143.94,6.63167171]
[1750880164630,11.11218397,143.98,143.94,13.57882478]
[1750880164945,5.9266,143.98,143.94,6.63167171]
[1750880165407,11.11215612,143.98,143.94,6.63167171]
[1750880165711,15.27942971,143.98,143.94,6.63167171]
[1750880166439,15.27942971,143.98,143.93,6.94755497]
[1750880166638,15.27942971,143.98,143.93,6.63167171]
[1750880168442,15.27942971,143.98,143.93,13.57942317]
[1750880169045,15.27942971,143.98,143.93,6.63167171]
[1750880170546,15.27942971,143.98,143.9,25.59871187]
[1750880170547,0.14216157,143.97,143.9,25.59871187]
[1750880170753,0.14216157,143.97,143.88,34.8692]
[1750880170754,0.14216157,143.95,143.88,18.64964886]
[1750880171059,0.14216157,143.95,143.9,6.63167171]
[1750880171849,4.1684035,143.94,143.9,6.63167171]
[1750880174233,4.1684035,143.94,143.88,13.5817851]
[1750880175858,152.7684035,143.94,143.88,13.5817851]
[1750880179553,6.1366,143.93,143.87,32.2319534]
[1750880180954,10.3054169,143.93,143.88,6.63167171]
[1750880182349,10.3054169,143.93,143.88,13.58178199]
[1750880182553,10.3054169,143.93,143.84,32.38]
[1750880182847,10.3054169,143.93,143.87,6.63167171]
[1750880182848,15.48677738,143.93,143.87,6.63167171]
[1750880183353,15.48677738,143.93,143.88,6.63167171]
[1750880184249,10.3054169,143.93,143.89,6.63167171]
[1750880185153,15.48773292,143.93,143.89,6.63167171]
[1750880186248,15.48773292,143.93,143.88,6.63167171]
[1750880186448,15.48870122,143.93,143.88,6.63167171]
[1750880188354,15.48870122,143.93,143.88,13.58184483]
[1750880188744,11.31988432,143.93,143.88,13.58184483]
[1750880188952,15.48863908,143.93,143.89,6.63167171]
[1750880189453,15.48863908,143.93,143.88,13.58184483]
[1750880191630,15.48863908,143.93,143.89,6.63167171]
[1750880193147,15.48863908,143.93,143.88,6.63167171]
[1750880195357,15.48863908,143.93,143.87,18.64964886]
[1750880195550,15.48863908,143.93,143.88,6.63167171]
[1750880195864,11.31988432,143.93,143.89,6.63167171]
[1750880196353,11.31988432,143.93,143.9,6.63167171]
[1750880196556,6.1366,143.93,143.89,6.63167171]
[1750880196744,10.30530156,143.93,143.87,6.95057389]
[1750880196947,15.49118389,143.93,143.87,13.5822456]
[1750880197159,5.18588233,143.92,143.87,13.5822456]
[1750880197359,5.18588233,143.92,143.88,6.63167171]
[1750880197747,9.35508967,143.92,143.87,6.95057389]
[1750880198056,9.35508967,143.92,143.88,6.63167171]
[1750880198464,5.18588233,143.92,143.88,6.63167171]
[1750880198641,5.18588233,143.92,143.89,6.63167171]
[1750880198835,15.49130888,143.93,143.89,6.63167171]
[1750880199740,10.30542655,143.93,143.89,6.63167171]
[1750880199941,10.30542655,143.93,143.89,13.58137863]
[1750880201361,15.49263496,143.93,143.89,13.58137863]
[1750880202662,15.49263496,143.93,143.89,6.63167171]
[1750880204050,15.49263496,143.93,143.89,13.58128581]
[1750880207865,11.32380841,143.93,143.89,13.58128581]
[1750880208250,11.32380841,143.93,143.89,11.19508488]
[1750880208451,5.18720841,143.93,143.91,4.24547078]
[1750880208666,148.6,143.94,143.91,4.24547078]
[1750880208852,148.6,143.94,143.92,4.24547078]
[1750880209979,148.6,143.94,143.92,11.19360527]
[1750880210151,148.6,143.94,143.93,4.24547078]
[1750880210351,148.6,143.94,143.93,6.63020062]
[1750880214169,6.4929,143.97,143.93,6.63020062]
[1750880214469,5.19119716,143.96,143.93,6.63020062]
[1750880214658,10.66047194,143.97,143.93,6.63020062]
[1750880214848,6.4929,143.97,143.93,13.57757445]
[1750880215246,6.4929,143.97,143.94,6.63020062]
[1750880215855,156.454,143.98,143.94,6.63020062]
[1750880216078,5.19102402,143.97,143.95,6.63020062]
[1750880216286,156.454,143.98,143.96,6.63020062]
[1750880216465,154.94,143.98,143.95,6.63020062]
[1750880216782,148.6,143.98,143.95,6.63020062]
[1750880216966,148.6,143.98,143.95,13.57681415]
[1750880218182,148.6,143.98,143.96,6.63020062]
[1750880218688,148.6,143.98,143.97,6.63020062]
[1750880219654,148.6,143.98,143.96,6.63020062]
[1750880219863,148.6,143.98,143.95,13.57688978]
[1750880220162,148.6,143.98,143.93,6.63020062]
[1750880221061,152.76727303,143.98,143.93,6.63020062]
[1750880221364,5.18432371,143.97,143.93,6.63020062]
[1750880223076,152.76727303,143.98,143.93,6.63020062]
[1750880223290,152.76727303,143.98,143.94,6.63020062]
[1750880223481,148.6,143.98,143.94,6.63020062]
[1750880223779,148.6,143.98,143.93,6.94776664]
[1750880223780,148.6,143.98,143.95,6.63020062]
[1750880225112,148.6,143.98,143.95,13.57704402]
[1750880226508,148.6,143.98,143.95,6.63020062]
[1750880227219,152.76728056,143.98,143.94,13.57738456]
[1750880227375,152.76728056,143.98,143.94,6.63020062]
[1750880230479,148.6,143.98,143.95,6.63020062]
[1750880231171,148.6,143.98,143.95,13.5769489]
[1750880231698,148.6,143.98,143.97,6.63020062]
[1750880233186,148.6,143.98,143.97,32.22574098]
[1750880234078,220.21332584,144.04,143.97,32.22574098]
[1750880234297,191.43332584,144.04,143.99,6.63020062]
[1750880234601,190.93332584,144.04,143.99,6.63020062]
[1750880234800,190.93332584,144.04,143.97,25.59554036]
[1750880235004,190.93332584,144.04,143.99,6.63020062]
[1750880235296,190.93332584,144.04,143.99,13.57505399]
[1750880235693,154.8877,144.04,144.01,6.63020062]
[1750880236200,154.8877,144.04,144.0,6.63020062]
[1750880236408,154.8877,144.04,143.99,6.94485337]
[1750880236573,154.8877,144.04,144.0,6.63020062]
[1750880236893,154.8877,144.04,144.01,6.63020062]
[1750880237122,0.04,144.06,144.03,6.63020062]
[1750880237294,0.04,144.06,144.04,6.63020062]
[1750880237498,0.04,144.06,144.05,6.63020062]
[1750880239399,0.04,144.06,144.05,13.57223463]
[1750880239794,0.04,144.06,144.05,6.63020062]
[1750880240503,0.04,144.06,144.05,13.57223463]
[1750880241504,0.04,144.06,144.05,32.22188349]
[1750880242405,0.04,144.06,144.05,6.63020062]
[1750880242811,0.04,144.06,144.04,6.63020062]
[1750880243276,0.04,144.06,144.04,13.57265767]
[1750880243483,0.04,144.06,144.05,6.63020062]
[1750880244105,0.04,144.06,144.04,6.63020062]
[1750880246397,0.04,144.06,144.05,6.63020062]
[1750880249305,6.4533,144.06,144.0,14.32835632]
[1750880249509,0.14216157,144.05,144.0,7.6981557]
[1750880250292,26.14216157,144.05,144.0,7.6981557]
[1750880250685,1.5684,144.04,144.0,7.6981557]
[1750880251199,0.14216157,144.02,144.0,7.6981557]
[1750880253117,4.16637733,144.01,144.0,7.6981557]
[1750880253513,30.3085389,144.01,144.0,7.6981557]
[1750880253815,36.7218389,144.01,144.0,7.6981557]
[1750880257819,41.8812946,144.01,144.0,7.6981557]
[1750880261529,47.52482871,144.01,144.0,7.6981557]
[1750880262630,41.8812946,144.01,144.0,7.6981557]
[1750880273228,41.8812946,144.01,143.89,1.5729]
[1750880273229,0.14216157,143.97,143.89,1.5729]
[1750880273531,0.14216157,143.95,143.89,15.15264645]
[1750880273934,0.14216157,143.95,143.89,1.5729]
[1750880274109,26.0,143.91,143.87,0.02]
[1750880274303,0.14216157,143.91,143.87,0.02]
[1750880274729,0.14216157,143.89,143.87,0.02]
[1750880274925,4.31230335,143.88,143.87,0.02]
[1750880276738,0.14216157,143.88,143.87,0.02]
[1750880276941,4.16993915,143.89,143.87,0.02]
[1750880279236,148.6,143.88,143.87,0.02]
[1750880279739,152.77014178,143.88,143.87,0.02]
[1750880280139,181.51014178,143.88,143.87,0.02]
[1750880282339,181.65230335,143.88,143.87,0.02]
[1750880282730,152.91230335,143.88,143.87,0.02]
[1750880283335,4.31230335,143.88,143.87,0.02]
[1750880283538,22.96195221,143.88,143.87,0.02]
[1750880284128,28.09970159,143.88,143.87,0.02]
[1750880286041,26.0,143.85,143.83,0.02]
[1750880286335,28.88216157,143.84,143.83,0.02]
[1750880288462,33.05346301,143.84,143.83,0.02]
[1750880288954,4.31346301,143.84,143.83,0.02]
[1750880289252,30.31346301,143.84,143.83,0.02]
[1750880290118,30.31346301,143.84,143.79,1.1364]
[1750880290319,26.0,143.83,143.79,8.09088005]
[1750880291136,4.31346301,143.84,143.79,14.72108067]
[1750880291137,0.14216157,143.84,143.79,14.72108067]
[1750880292046,4.31348176,143.84,143.79,14.72108067]
[1750880292457,4.31348176,143.84,143.79,1.1364]
[1750880293029,0.14216157,143.83,143.79,1.1364]
[1750880293227,26.0,143.81,143.78,0.02]
[1750880293540,54.88216157,143.83,143.78,0.02]
[1750880293932,54.88216157,143.83,143.76,20.40526207]
[1750880293933,54.88216157,143.83,143.76,27.03546269]
[1750880294532,4.17188151,143.82,143.76,27.03546269]
[1750880296051,4.17188151,143.82,143.76,33.99129201]
[1750880296458,4.17188151,143.82,143.77,13.58551584]
[1750880296652,26.0,143.83,143.79,6.63020062]
[1750880297944,30.17165954,143.83,143.79,6.63020062]
[1750880298143,30.17165954,143.83,143.77,13.58551584]
[1750880298766,30.17165954,143.83,143.77,6.95531522]
[1750880298974,30.17165954,143.83,143.79,6.63020062]
[1750880299661,30.17165954,143.83,143.77,6.95531522]
[1750880299848,30.17165954,143.83,143.78,13.58498587]
[1750880300648,26.0,143.83,143.79,6.63020062]
[1750880301063,148.6,143.84,143.81,6.63020062]
[1750880302036,148.6,143.87,143.83,6.63020062]
[1750880302265,148.6,143.87,143.81,18.64964886]
[1750880302266,148.6,143.87,143.84,6.63020062]
[1750880303969,152.77043721,143.87,143.81,18.64964886]
[1750880304162,152.77043721,143.87,143.81,25.27984948]
[1750880304725,152.77043721,143.87,143.82,6.63020062]
[1750880304843,148.6,143.87,143.83,6.63020062]
[1750880305468,152.77050188,143.87,143.81,25.60307666]
[1750880305646,148.6,143.87,143.83,6.63020062]
[1750880305842,148.6,143.87,143.83,13.58273429]
[1750880306865,152.77052274,143.87,143.83,6.63020062]
[1750880307973,148.6,143.87,143.83,13.58278183]
[1750880308152,148.6,143.87,143.84,6.63020062]
[1750880310672,148.6,143.87,143.83,6.63020062]
[1750880311548,148.6,143.87,143.84,6.63020062]
[1750880312548,148.6,143.87,143.84,13.58223856]
[1750880314071,148.6,143.87,143.83,6.9524246]
[1750880314271,148.6,143.87,143.83,13.58262522]
[1750880314677,152.77051383,143.87,143.83,13.58262522]
[1750880315578,148.6,143.87,143.84,6.63020062]
[1750880316046,152.7705117,143.87,143.83,6.63020062]
[1750880316854,152.7705117,143.87,143.81,6.95359371]
[1750880317058,152.7705117,143.87,143.81,6.63020062]
[1750880317250,0.14216157,143.86,143.81,6.63020062]
[1750880317452,28.88216157,143.86,143.81,6.63020062]
[1750880317654,34.06027428,143.86,143.81,6.63020062]
[1750880318071,4.17101147,143.85,143.81,6.63020062]
[1750880318278,4.17101147,143.85,143.8,6.63020062]
[1750880318961,9.34912418,143.85,143.78,51.6045531]
[1750880319157,5.17811271,143.84,143.79,6.63020062]
[1750880319388,5.17811271,143.84,143.82,6.63020062]
[1750880319558,5.17811271,143.85,143.83,6.63020062]
[1750880319759,9.35329227,143.86,143.83,6.63020062]
[1750880320362,4.17086267,143.86,143.83,6.63020062]
[1750880320561,185.06138423,143.87,143.83,6.63020062]
[1750880320959,185.06138423,143.87,143.82,6.63020062]
[1750880321158,34.06483581,143.86,143.81,6.63020062]
[1750880322081,4.17101147,143.85,143.81,6.63020062]
[1750880322578,38.23569064,143.86,143.82,6.63020062]
[1750880323086,178.77052134,143.87,143.83,6.63020062]
[1750880323276,174.6,143.87,143.84,6.63020062]
[1750880323466,174.6,143.87,143.83,6.63020062]
[1750880324388,174.6,143.87,143.83,13.58262405]
[1750880326258,148.6,143.87,143.84,6.63020062]
[1750880327792,148.6,143.87,143.84,13.58189085]
[1750880331899,148.6,143.87,143.81,37.58296754]
[1750880332197,148.6,143.87,143.83,6.63020062]
[1750880333366,148.6,143.87,143.83,13.5825397]
[1750880333569,148.6,143.87,143.84,6.63020062]
[1750880336785,148.6,143.87,143.86,6.63020062]
[1750880337491,30.2688,143.91,143.86,13.58140317]
[1750880337672,6.73224807,143.91,143.88,6.63020062]
[1750880338296,6.73224807,143.91,143.87,6.63020062]
[1750880339002,10.90160129,143.91,143.86,6.95120255]
[1750880339208,10.90160129,143.91,143.86,6.63020062]
[1750880339381,10.90160129,143.91,143.86,13.58131398]
[1750880340903,10.90160129,143.91,143.88,6.63020062]
[1750880341085,6.73224807,143.91,143.88,6.63020062]
[1750880341285,0.04,143.93,143.9,6.63020062]
[1750880341480,0.04,143.93,143.86,25.92121975]
[1750880341707,0.04,143.93,143.91,6.63020062]
[1750880342609,0.04,143.93,143.92,6.63020062]
[1750880344608,0.04,143.93,143.92,13.57850523]
[1750880344808,0.04,143.93,143.92,6.63020062]
[1750880345014,0.04,143.93,143.91,6.9486058]
[1750880345015,0.04,143.93,143.91,6.63020062]
[1750880346200,0.04,143.93,143.89,6.63020062]
[1750880346698,0.04,143.93,143.89,13.57983053]
[1750880347210,0.04,143.93,143.9,6.63020062]
[1750880348612,0.04,143.93,143.91,6.63020062]
[1750880348908,0.04,143.93,143.92,6.63020062]
[1750880350506,0.04,143.93,143.92,13.57850523]
[1750880353317,0.04,143.93,143.92,32.22815409]
[1750880354016,0.04,143.93,143.92,13.57850523]
[1750880354818,0.04,143.93,143.92,6.94830461]
[1750880355018,0.04,143.93,143.92,13.57850523]
[1750880355223,0.04,143.93,143.92,6.94830461]
[1750880355423,0.04,143.93,143.91,6.94867044]
[1750880356318,0.04,143.93,143.92,6.63020062]
[1750880357012,0.04,143.93,143.92,25.27984948]
[1750880358608,0.04,143.93,143.92,32.22815409]
[1750880361426,0.04,143.93,143.92,13.57850523]
[1750880365623,0.04,143.93,143.92,6.63020062]
[1750880367830,0.04,143.93,143.91,6.63020062]
[1750880370412,0.04,143.93,143.9,6.94908226]
[1750880370616,0.04,143.93,143.91,6.63020062]
[1750880370930,0.04,143.93,143.9,13.57928288]
[1750880371305,0.04,143.93,143.88,6.9502363]
[1750880371515,1.6183,143.93,143.88,13.58043692]
[1750880371708,26.0,143.91,143.85,6.63020062]
[1750880372325,26.14216157,143.92,143.85,25.27984948]
[1750880372708,4.16927246,143.91,143.86,13.58131134]
[1750880373631,0.14216157,143.9,143.84,6.63020062]
[1750880374547,0.14216157,143.9,143.84,13.58229636]
[1750880374548,4.16985197,143.89,143.84,13.58229636]
[1750880375347,4.16985197,143.89,143.85,6.63020062]
[1750880375527,4.31181659,143.9,143.86,6.63020062]
[1750880376047,174.6,143.92,143.88,6.63020062]
[1750880376742,178.76902151,143.92,143.88,6.63020062]
[1750880377435,178.76902151,143.92,143.88,13.58040823]
[1750880377940,178.76902151,143.92,143.88,6.95020761]
[1750880378147,178.76902151,143.92,143.88,13.58040823]
[1750880378456,174.6,143.92,143.88,13.58040823]
[1750880378739,148.6,143.92,143.88,13.58040823]
[1750880378947,148.6,143.92,143.88,6.95020761]
[1750880379151,148.6,143.92,143.88,13.58040823]
[1750880383119,152.76898949,143.92,143.88,13.58040823]
[1750880385933,148.6,143.92,143.88,13.58040823]
[1750880386446,148.6,143.92,143.89,6.63020062]
[1750880387754,148.6,143.92,143.9,6.63020062]
[1750880388056,148.6,143.92,143.91,6.63020062]
[1750880388423,148.6,143.92,143.91,13.57898805]
[1750880388960,148.6,143.92,143.91,6.63020062]
[1750880389767,148.6,143.92,143.89,6.94950956]
[1750880389945,148.6,143.92,143.89,13.57971018]
[1750880390349,148.6,143.92,143.89,6.63020062]
[1750880390536,148.6,143.92,143.88,13.58025028]
[1750880391460,148.6,143.92,143.89,6.63020062]
[1750880391663,152.76898475,143.92,143.89,6.63020062]
[1750880392355,152.76898475,143.92,143.88,6.63020062]
[1750880393360,152.76898475,143.92,143.88,13.58038641]
[1750880393564,148.6,143.92,143.88,13.58038641]
[1750880393953,148.6,143.92,143.89,6.63020062]
[1750880395249,148.6,143.92,143.9,6.63020062]
[1750880396445,148.6,143.92,143.9,13.57941178]
[1750880398454,148.6,143.92,143.91,6.63020062]
[1750880399483,148.6,143.92,143.91,13.57898805]
[1750880400475,148.6,143.92,143.91,6.94878743]
[1750880400772,148.6,143.92,143.91,13.57898805]
[1750880401161,147.01806136,143.92,143.91,13.57898805]
[1750880403372,0.04,143.93,143.91,13.57898805]
[1750880406556,0.04,143.93,143.9,13.57924629]
[1750880406750,0.04,143.93,143.89,13.57972683]
[1750880408666,5.22941723,143.93,143.89,13.57972683]
[1750880409833,0.04,143.93,143.9,6.63020062]
[1750880409967,0.04,143.93,143.92,25.27984948]
[1750880410155,0.04,143.93,143.92,6.63020062]
[1750880410787,0.04,143.93,143.92,57.9100501]
[1750880411085,6.3754,143.98,143.93,20.28694886]
[1750880411086,0.04,143.98,143.93,20.28694886]
[1750880411398,0.04,143.98,143.97,25.27984948]
[1750880411558,0.04,143.98,143.96,26.0]
[1750880411765,0.04,143.98,143.97,6.63020062]
[1750880412071,0.04,143.98,143.96,6.63020062]
[1750880413186,0.04,143.98,143.95,6.63020062]
[1750880414881,0.04,143.98,143.94,6.63020062]
[1750880415085,5.18355431,143.97,143.94,6.63020062]
[1750880415297,11.74585431,143.97,143.92,26.0]
[1750880415500,11.74585431,143.97,143.92,6.63020062]
[1750880415665,11.24585431,143.97,143.92,6.63020062]
[1750880415864,11.24585431,143.97,143.93,6.63020062]
[1750880416594,15.4134391,143.97,143.93,6.63020062]
[1750880417364,10.72988479,143.97,143.93,6.63020062]
[1750880417559,6.5623,143.97,143.93,13.57799418]
[1750880418499,6.5623,143.97,143.94,6.63020062]
[1750880418665,6.5623,143.97,143.94,13.57749204]
[1750880419982,27.69416157,143.96,143.88,6.26]
[1750880420164,27.69416157,143.96,143.88,6.63020062]
[1750880420366,147.01806136,143.95,143.88,6.63020062]
[1750880420566,4.1684035,143.94,143.89,13.57984057]
[1750880420779,4.1684035,143.94,143.89,6.63020062]
[1750880421088,0.14216157,143.93,143.85,13.60171935]
[1750880421276,6.1863,143.92,143.85,13.60171935]
[1750880421981,6.1863,143.92,143.87,13.58092001]
[1750880422285,10.35529311,143.92,143.87,13.58092001]
[1750880424477,6.1863,143.92,143.89,6.63020062]
[1750880426190,6.1863,143.92,143.89,13.57976795]
[1750880426391,6.24,143.94,143.91,6.63020062]
[1750880426694,147.01806136,143.95,143.93,6.63020062]
[1750880427690,147.01806136,143.95,143.92,6.63020062]
[1750880428281,151.18618384,143.95,143.91,13.57888606]
[1750880428484,151.18618384,143.95,143.91,6.63020062]
[1750880429800,151.18618384,143.95,143.91,13.57893957]
[1750880430591,151.18618384,143.95,143.88,18.64964886]
[1750880430794,5.18531286,143.94,143.88,25.5997376]
[1750880430992,5.18531286,143.94,143.89,6.63020062]
[1750880431292,0.14216157,143.94,143.89,6.63020062]
[1750880431476,0.14216157,143.94,143.87,6.95050321]
[1750880431790,152.2037512,143.93,143.88,6.63020062]
[1750880432093,147.01806136,143.93,143.88,6.63020062]
[1750880432595,4.16898276,143.92,143.88,6.63020062]
[1750880432780,4.16898276,143.92,143.87,6.63020062]
[1750880433088,5.18601445,143.91,143.86,6.63020062]
[1750880433289,4.16898276,143.92,143.86,6.63020062]
[1750880433897,5.1854355,143.91,143.86,6.63020062]
[1750880434399,9.35441826,143.92,143.87,6.63020062]
[1750880434772,9.35441826,143.92,143.88,6.63020062]
[1750880435193,5.1854355,143.92,143.9,6.63020062]
[1750880435394,151.18691653,143.93,143.9,6.63020062]
[1750880435702,151.18691653,143.93,143.89,6.63020062]
[1750880435996,5.18397473,143.92,143.86,25.60085141]
[1750880436199,5.18397473,143.92,143.86,13.58140317]
[1750880436696,4.16927246,143.91,143.86,13.58140317]
[1750880436993,4.16927246,143.91,143.86,6.63020062]
[1750880437191,6.1834,143.9,143.86,6.63020062]
[1750880439591,10.35309729,143.9,143.86,6.63020062]
[1750880440400,11.91879729,143.9,143.86,6.63020062]
[1750880441007,11.91879729,143.9,143.85,6.65020062]
[1750880441576,11.91879729,143.9,143.85,0.02]
[1750880441880,208.06022293,143.89,143.85,0.02]
[1750880442193,152.20203609,143.88,143.85,0.02]
[1750880442394,147.01806136,143.88,143.85,0.02]
[1750880443906,151.18834593,143.88,143.85,0.02]
[1750880444081,147.01806136,143.88,143.85,6.65020062]
[1750880445098,151.18820514,143.88,143.85,0.02]
[1750880446315,151.18820514,143.88,143.85,6.65020062]
[1750880447818,147.01806136,143.88,143.85,6.65020062]
[1750880448520,151.18824558,143.88,143.85,6.65020062]
[1750880448680,151.18824558,143.88,143.85,0.02]
[1750880448990,147.01806136,143.88,143.87,6.63020062]
[1750880449801,147.01806136,143.88,143.86,6.63020062]
[1750880452606,147.01806136,143.88,143.86,13.5812068]
[1750880454211,147.01806136,143.88,143.87,6.63020062]
[1750880456312,147.01806136,143.88,143.86,13.5812068]
[1750880460316,147.01806136,143.88,143.87,6.63020062]
[1750880461916,6.26,143.92,143.87,6.63020062]
[1750880462123,40.08257068,143.92,143.9,6.63020062]
[1750880462302,11.44257068,143.92,143.89,6.63020062]
[1750880462503,5.18257068,143.92,143.89,6.63020062]
[1750880462725,9.35158911,143.92,143.88,6.63020062]
[1750880463225,9.35158911,143.92,143.87,6.63020062]
[1750880463516,9.35158911,143.92,143.85,6.97168578]
[1750880463517,0.14216157,143.9,143.85,13.6018864]
[1750880463722,5.32473225,143.9,143.85,13.6018864]
[1750880463920,5.32473225,143.9,143.86,6.63020062]
[1750880464504,9.49455325,143.9,143.86,6.63020062]
[1750880465629,11.20035758,143.89,143.85,0.02]
[1750880465818,158.21841894,143.89,143.85,0.02]
[1750880466016,5.19153627,143.88,143.85,0.02]
[1750880466420,153.02726136,143.89,143.85,0.02]
[1750880466726,5.19140009,143.88,143.85,0.02]
[1750880466928,153.02726136,143.89,143.85,0.02]
[1750880467606,4.17014178,143.88,143.85,0.02]
[1750880469127,153.02726136,143.89,143.85,6.65020062]
[1750880469331,157.19719197,143.89,143.85,6.65020062]
[1750880469741,153.02726136,143.89,143.85,6.65020062]
[1750880471032,157.19713889,143.89,143.85,6.65020062]
[1750880472241,153.02726136,143.89,143.86,6.63020062]
[1750880472737,157.19721043,143.89,143.86,6.63020062]
[1750880474435,157.19721043,143.89,143.85,6.65020062]
[1750880476042,183.60082293,143.88,143.85,0.02]
[1750880476342,5.19634161,143.87,143.85,0.02]
[1750880476539,5.19634161,143.86,143.85,0.02]
[1750880477537,9.36706314,143.86,143.85,0.02]
[1750880478629,9.50922471,143.86,143.85,0.02]
[1750880478830,38.12922471,143.86,143.85,0.02]
[1750880482933,32.9328831,143.86,143.85,0.02]
[1750880483815,4.17055272,143.87,143.85,0.02]
[1750880484745,9.36279008,143.87,143.85,0.02]
[1750880485731,4.17055272,143.87,143.85,0.02]
[1750880487050,9.36288614,143.86,143.85,0.02]
[1750880487219,4.17072153,143.86,143.85,0.02]
[1750880487420,38.12504771,143.86,143.85,0.02]
[1750880487928,32.9328831,143.86,143.85,0.02]
[1750880489645,38.12468979,143.86,143.85,0.02]
[1750880493350,32.9328831,143.86,143.85,0.02]